[Event "November 21 Late 2023"]
[Site "https://www.chess.com"]
[Date "2023.11.21"]
[Round "1"]
[White "Balla, Tamas-Kristof"]
[Black "Vasquez Schroeder, Rodrigo"]
[Result "0-1"]
[Board "54"]
[TimeControl "180+1"]
[WhiteFideId "1208497"]
[BlackFideId "3400042"]
[WhiteElo "2306"]
[BlackElo "2582"]
[WhiteTeam "ROU"]
[BlackTeam "CHI"]
[WhiteClock "0:00:54"]
[BlackClock "0:00:33"]

1. e4 {[%clk 0:03:00]}  c6 {[%clk 0:02:56]} 2. d4 {[%clk 0:03:00]}  d5 {[%clk 0:02:55]} 3. e5 {[%clk 0:03:01]}  Bf5 {[%clk 0:02:55]} 4. h4 {[%clk 0:03:00]}  Qb6 {[%clk 0:02:55]} 5. Bd3 {[%clk 0:02:53]}  Bxd3 {[%clk 0:02:43]} 6. Qxd3 {[%clk 0:02:54]}  e6 {[%clk 0:02:44]} 7. Nf3 {[%clk 0:02:53]}  c5 {[%clk 0:02:42]} 8. c4 {[%clk 0:02:48]}  Nc6 {[%clk 0:02:27]} 9. cxd5 {[%clk 0:02:33]}  Nb4 {[%clk 0:02:24]} 10. Qe2 {[%clk 0:02:15]}  Nxd5 {[%clk 0:02:06]} 11. dxc5 {[%clk 0:02:10]}  Bxc5 {[%clk 0:02:05]} 12. O-O {[%clk 0:02:10]}  Nge7 {[%clk 0:02:04]} 13. Nbd2 {[%clk 0:02:01]}  O-O {[%clk 0:01:52]} 14. Ne4 {[%clk 0:02:00]}  Rfc8 {[%clk 0:01:49]} 15. a3 {[%clk 0:01:58]}  a5 {[%clk 0:01:48]} 16. Bg5 {[%clk 0:01:39]}  Nf5 {[%clk 0:01:45]} 17. Rac1 {[%clk 0:01:32]}  Bf8 {[%clk 0:01:30]} 18. Rfd1 {[%clk 0:01:11]}  h6 {[%clk 0:01:26]} 19. Rxc8 {[%clk 0:01:10]}  Rxc8 {[%clk 0:01:24]} 20. Bc1 {[%clk 0:01:11]}  Qb3 {[%clk 0:00:58]} 21. g4 {[%clk 0:01:08]}  Rc2 {[%clk 0:00:40]} 22. Nfd2 {[%clk 0:00:56]}  Nd4 {[%clk 0:00:34]} 23. Qe3 {[%clk 0:00:55]}  Nxe3 {[%clk 0:00:33]} 24. fxe3 {[%clk 0:00:54]}  Qxe3+ {[%clk 0:00:33]} 0-1

[Event "November 21 Late 2023"]
[Site "https://www.chess.com"]
[Date "2023.11.21"]
[Round "1"]
[White "Qiao, Cindy"]
[Black "Fier, Alexandr"]
[Result "0-1"]
[Board "66"]
[TimeControl "180+1"]
[WhiteFideId "2620243"]
[BlackFideId "2107139"]
[WhiteElo "1862"]
[BlackElo "2578"]
[WhiteTeam "CAN"]
[BlackTeam "BRA"]
[WhiteClock "0:01:59"]
[BlackClock "0:02:47"]

1. e4 {[%clk 0:03:00]}  Nf6 {[%clk 0:02:57]} 2. Nc3 {[%clk 0:02:59]}  d6 {[%clk 0:02:56]} 3. d4 {[%clk 0:02:59]}  g6 {[%clk 0:02:56]} 4. Bf4 {[%clk 0:02:59]}  Bg7 {[%clk 0:02:57]} 5. Qd2 {[%clk 0:02:59]}  c6 {[%clk 0:02:56]} 6. O-O-O {[%clk 0:03:00]}  b5 {[%clk 0:02:56]} 7. f3 {[%clk 0:03:00]}  b4 {[%clk 0:02:56]} 8. Nce2 {[%clk 0:02:59]}  Qa5 {[%clk 0:02:56]} 9. Kb1 {[%clk 0:03:00]}  Be6 {[%clk 0:02:56]} 10. Nc1 {[%clk 0:03:00]}  Nbd7 {[%clk 0:02:56]} 11. h4 {[%clk 0:03:00]}  Nb6 {[%clk 0:02:56]} 12. e5 {[%clk 0:02:56]}  Nfd5 {[%clk 0:02:56]} 13. exd6 {[%clk 0:02:56]}  Nc3+ {[%clk 0:02:46]} 14. bxc3 {[%clk 0:01:59]}  bxc3 {[%clk 0:02:47]} 0-1

[Event "November 21 Late 2023"]
[Site "https://www.chess.com"]
[Date "2023.11.21"]
[Round "1"]
[White "Hambleton, Aman"]
[Black "Marcziter, Dmitrii"]
[Result "1-0"]
[Board "67"]
[TimeControl "180+1"]
[WhiteFideId "2606577"]
[BlackFideId "13900765"]
[WhiteElo "2511"]
[BlackElo "2142"]
[WhiteTeam "CAN"]
[BlackTeam "GER"]
[WhiteClock "0:01:50"]
[BlackClock "0:01:44"]

1. d4 {[%clk 0:03:00]}  Nf6 {[%clk 0:02:56]} 2. Bf4 {[%clk 0:02:57]}  d5 {[%clk 0:02:55]} 3. e3 {[%clk 0:02:57]}  c5 {[%clk 0:02:54]} 4. c3 {[%clk 0:02:57]}  Nc6 {[%clk 0:02:54]} 5. Nd2 {[%clk 0:02:58]}  Qb6 {[%clk 0:02:53]} 6. Qb3 {[%clk 0:02:58]}  c4 {[%clk 0:02:54]} 7. Qc2 {[%clk 0:02:57]}  g6 {[%clk 0:02:48]} 8. e4 {[%clk 0:02:57]}  e6 {[%clk 0:02:45]} 9. e5 {[%clk 0:02:57]}  Nd7 {[%clk 0:02:44]} 10. Ngf3 {[%clk 0:02:57]}  Bg7 {[%clk 0:02:43]} 11. Be2 {[%clk 0:02:57]}  O-O {[%clk 0:02:42]} 12. O-O {[%clk 0:02:57]}  Qd8 {[%clk 0:02:40]} 13. Rfe1 {[%clk 0:02:55]}  b5 {[%clk 0:02:39]} 14. h4 {[%clk 0:02:49]}  h5 {[%clk 0:02:39]} 15. Ng5 {[%clk 0:02:37]}  Re8 {[%clk 0:02:33]} 16. Bxh5 {[%clk 0:02:03]}  gxh5 {[%clk 0:02:22]} 17. Qh7+ {[%clk 0:02:04]}  Kf8 {[%clk 0:02:22]} 18. Qxh5 {[%clk 0:02:05]}  Qe7 {[%clk 0:02:07]} 19. Nh7+ {[%clk 0:01:55]}  Kg8 {[%clk 0:02:07]} 20. Bg5 {[%clk 0:01:56]}  f6 {[%clk 0:01:45]} 21. exf6 {[%clk 0:01:56]}  Nxf6 {[%clk 0:01:44]} 22. Nxf6+ {[%clk 0:01:49]}  Bxf6 {[%clk 0:01:44]} 23. Bxf6 {[%clk 0:01:50]}  Qf7 {[%clk 0:01:44]} 24. Qh8# {[%clk 0:01:50]} 1-0

[Event "November 21 Late 2023"]
[Site "https://www.chess.com"]
[Date "2023.11.21"]
[Round "1"]
[White "Estrada Nieto, Julian"]
[Black "Wagner, Dennis"]
[Result "0-1"]
[Board "68"]
[TimeControl "180+1"]
[WhiteFideId "5101018"]
[BlackFideId "24650684"]
[WhiteElo "2161"]
[BlackElo "2482"]
[WhiteTeam "ESP"]
[BlackTeam "GER"]
[WhiteClock "0:00:01"]
[BlackClock "0:00:21"]

1. e4 {[%clk 0:03:00]}  c5 {[%clk 0:02:59]} 2. Nf3 {[%clk 0:02:59]}  d6 {[%clk 0:02:59]} 3. Bb5+ {[%clk 0:02:59]}  Nd7 {[%clk 0:02:59]} 4. d4 {[%clk 0:02:58]}  cxd4 {[%clk 0:02:59]} 5. Qxd4 {[%clk 0:02:59]}  a6 {[%clk 0:02:59]} 6. Bxd7+ {[%clk 0:02:59]}  Bxd7 {[%clk 0:03:00]} 7. Nc3 {[%clk 0:03:00]}  Rc8 {[%clk 0:02:59]} 8. O-O {[%clk 0:02:57]}  e5 {[%clk 0:02:58]} 9. Qd3 {[%clk 0:02:56]}  h6 {[%clk 0:02:59]} 10. Rd1 {[%clk 0:02:55]}  Nf6 {[%clk 0:02:58]} 11. Nd2 {[%clk 0:02:55]}  Bg4 {[%clk 0:02:51]} 12. Re1 {[%clk 0:02:54]}  Be6 {[%clk 0:02:50]} 13. Nf1 {[%clk 0:02:52]}  Be7 {[%clk 0:02:50]} 14. Ne3 {[%clk 0:02:51]}  b5 {[%clk 0:02:45]} 15. a4 {[%clk 0:02:41]}  b4 {[%clk 0:02:43]} 16. Ncd5 {[%clk 0:02:42]}  Bxd5 {[%clk 0:02:43]} 17. exd5 {[%clk 0:02:31]}  Qb6 {[%clk 0:02:37]} 18. Nf5 {[%clk 0:02:12]}  Bf8 {[%clk 0:02:16]} 19. Be3 {[%clk 0:01:42]}  Qb7 {[%clk 0:02:16]} 20. Rad1 {[%clk 0:01:36]}  g6 {[%clk 0:02:16]} 21. Ng3 {[%clk 0:01:28]}  Bg7 {[%clk 0:02:12]} 22. a5 {[%clk 0:01:22]}  O-O {[%clk 0:02:10]} 23. Bb6 {[%clk 0:01:13]}  Nd7 {[%clk 0:02:08]} 24. Ne4 {[%clk 0:01:11]}  Qb8 {[%clk 0:01:47]} 25. Qxa6 {[%clk 0:00:55]}  Rxc2 {[%clk 0:01:29]} 26. Qa7 {[%clk 0:00:43]}  Qxa7 {[%clk 0:01:17]} 27. Bxa7 {[%clk 0:00:43]}  Ra8 {[%clk 0:01:17]} 28. Bb6 {[%clk 0:00:43]}  Bf8 {[%clk 0:01:13]} 29. Rd2 {[%clk 0:00:40]}  Rcc8 {[%clk 0:00:54]} 30. g4 {[%clk 0:00:35]}  Nxb6 {[%clk 0:00:50]} 31. axb6 {[%clk 0:00:35]}  Rab8 {[%clk 0:00:49]} 32. Nf6+ {[%clk 0:00:27]}  Kg7 {[%clk 0:00:50]} 33. Nd7 {[%clk 0:00:27]}  Rb7 {[%clk 0:00:50]} 34. Nxf8 {[%clk 0:00:27]}  Kxf8 {[%clk 0:00:51]} 35. f4 {[%clk 0:00:23]}  exf4 {[%clk 0:00:51]} 36. Re4 {[%clk 0:00:23]}  g5 {[%clk 0:00:41]} 37. Rxb4 {[%clk 0:00:22]}  Rcb8 {[%clk 0:00:42]} 38. Rc2 {[%clk 0:00:11]}  Rxb6 {[%clk 0:00:42]} 39. Rxb6 {[%clk 0:00:10]}  Rxb6 {[%clk 0:00:43]} 40. Kf2 {[%clk 0:00:08]}  Ke7 {[%clk 0:00:41]} 41. Kf3 {[%clk 0:00:07]}  Rb4 {[%clk 0:00:31]} 42. Rc7+ {[%clk 0:00:06]}  Kf6 {[%clk 0:00:31]} 43. Rd7 {[%clk 0:00:06]}  Rb3+ {[%clk 0:00:28]} 44. Ke4 {[%clk 0:00:06]}  Rb4+ {[%clk 0:00:28]} 45. Kf3 {[%clk 0:00:06]}  Rb6 {[%clk 0:00:28]} 46. Rd8 {[%clk 0:00:05]}  Ke5 {[%clk 0:00:28]} 47. Rd7 {[%clk 0:00:02]}  Rb3+ {[%clk 0:00:25]} 48. Kf2 {[%clk 0:00:02]}  Rxb2+ {[%clk 0:00:26]} 49. Kf3 {[%clk 0:00:03]}  Rb3+ {[%clk 0:00:26]} 50. Kf2 {[%clk 0:00:03]}  f6 {[%clk 0:00:26]} 51. Re7+ {[%clk 0:00:03]}  Kxd5 {[%clk 0:00:26]} 52. Rf7 {[%clk 0:00:04]}  Ke5 {[%clk 0:00:26]} 53. Re7+ {[%clk 0:00:04]}  Kd4 {[%clk 0:00:26]} 54. Re6 {[%clk 0:00:04]}  Rb2+ {[%clk 0:00:21]} 55. Kf3 {[%clk 0:00:05]}  d5 {[%clk 0:00:21]} 56. Rxf6 {[%clk 0:00:05]}  Rxh2 {[%clk 0:00:21]} 57. Ra6 {[%clk 0:00:04]}  Rh3+ {[%clk 0:00:21]} 58. Kf2 {[%clk 0:00:04]}  Rg3 {[%clk 0:00:21]} 59. Ra4+ {[%clk 0:00:04]}  Ke5 {[%clk 0:00:22]} 60. Ra6 {[%clk 0:00:04]}  Rxg4 {[%clk 0:00:21]} 61. Rxh6 {[%clk 0:00:04]}  Rg3 {[%clk 0:00:21]} 62. Rh8 {[%clk 0:00:04]}  Ke4 {[%clk 0:00:20]} 63. Re8+ {[%clk 0:00:04]}  Kd3 {[%clk 0:00:21]} 64. Re5 {[%clk 0:00:01]}  d4 {[%clk 0:00:21]} 0-1

[Event "November 21 Late 2023"]
[Site "https://www.chess.com"]
[Date "2023.11.21"]
[Round "1"]
[White "Jarmula, Lukasz"]
[Black "Miszler, Levente"]
[Result "1-0"]
[Board "69"]
[TimeControl "180+1"]
[WhiteFideId "1160664"]
[BlackFideId "763276"]
[WhiteElo "2372"]
[BlackElo "2186"]
[WhiteTeam "POL"]
[BlackTeam "HUN"]
[WhiteClock "0:01:23"]
[BlackClock "0:00:41"]

1. c4 {[%clk 0:03:00]}  Nf6 {[%clk 0:02:56]} 2. Nc3 {[%clk 0:03:00]}  e6 {[%clk 0:02:55]} 3. e4 {[%clk 0:03:00]}  c5 {[%clk 0:02:53]} 4. e5 {[%clk 0:03:00]}  Ng8 {[%clk 0:02:50]} 5. Nf3 {[%clk 0:02:59]}  Nc6 {[%clk 0:02:50]} 6. d4 {[%clk 0:02:59]}  cxd4 {[%clk 0:02:50]} 7. Nxd4 {[%clk 0:02:59]}  Nxe5 {[%clk 0:02:50]} 8. Ndb5 {[%clk 0:02:59]}  a6 {[%clk 0:02:47]} 9. Nd6+ {[%clk 0:02:59]}  Bxd6 {[%clk 0:02:48]} 10. Qxd6 {[%clk 0:02:59]}  f6 {[%clk 0:02:46]} 11. Be3 {[%clk 0:02:59]}  Ne7 {[%clk 0:02:44]} 12. Bb6 {[%clk 0:02:52]}  Nf5 {[%clk 0:02:42]} 13. Qc5 {[%clk 0:02:51]}  Qe7 {[%clk 0:02:38]} 14. O-O-O {[%clk 0:02:45]}  Qxc5 {[%clk 0:02:35]} 15. Bxc5 {[%clk 0:02:45]}  Kf7 {[%clk 0:02:25]} 16. Be2 {[%clk 0:02:42]}  g5 {[%clk 0:01:54]} 17. g4 {[%clk 0:02:35]}  Nh4 {[%clk 0:01:52]} 18. Ne4 {[%clk 0:02:35]}  Neg6 {[%clk 0:01:47]} 19. Nd6+ {[%clk 0:02:32]}  Kg7 {[%clk 0:01:47]} 20. Nxc8 {[%clk 0:02:27]}  Raxc8 {[%clk 0:01:45]} 21. Rxd7+ {[%clk 0:02:27]}  Kh6 {[%clk 0:01:45]} 22. Be3 {[%clk 0:02:17]}  Ne5 {[%clk 0:01:44]} 23. Rxb7 {[%clk 0:02:05]}  Nxc4 {[%clk 0:01:44]} 24. Bxc4 {[%clk 0:01:59]}  Rxc4+ {[%clk 0:01:45]} 25. Kb1 {[%clk 0:01:59]}  Nf3 {[%clk 0:01:38]} 26. h4 {[%clk 0:01:56]}  Kg6 {[%clk 0:01:34]} 27. h5+ {[%clk 0:01:47]}  Kh6 {[%clk 0:01:34]} 28. Rf7 {[%clk 0:01:48]}  f5 {[%clk 0:01:22]} 29. gxf5 {[%clk 0:01:43]}  exf5 {[%clk 0:01:23]} 30. Rxf5 {[%clk 0:01:41]}  Rh4 {[%clk 0:01:20]} 31. Bxg5+ {[%clk 0:01:35]}  Nxg5 {[%clk 0:01:18]} 32. Rxh4 {[%clk 0:01:35]}  Rc8 {[%clk 0:01:17]} 33. Rg4 {[%clk 0:01:30]}  a5 {[%clk 0:01:10]} 34. Rgxg5 {[%clk 0:01:29]}  a4 {[%clk 0:01:11]} 35. Rc5 {[%clk 0:01:25]}  Rb8 {[%clk 0:01:07]} 36. Rb5 {[%clk 0:01:25]}  Ra8 {[%clk 0:00:55]} 37. Rgc5 {[%clk 0:01:25]}  Rd8 {[%clk 0:00:52]} 38. Rc6+ {[%clk 0:01:25]}  Kg7 {[%clk 0:00:52]} 39. Rb7+ {[%clk 0:01:25]}  Kh8 {[%clk 0:00:52]} 40. Rcc7 {[%clk 0:01:25]}  a3 {[%clk 0:00:51]} 41. bxa3 {[%clk 0:01:24]}  h6 {[%clk 0:00:41]} 42. a4 {[%clk 0:01:23]} 1-0

[Event "November 21 Late 2023"]
[Site "https://www.chess.com"]
[Date "2023.11.21"]
[Round "1"]
[White "Zeman, Matyas"]
[Black "Zeltsan, Joseph"]
[Result "1-0"]
[Board "70"]
[TimeControl "180+1"]
[WhiteFideId "364398"]
[BlackFideId "30932980"]
[WhiteElo "2286"]
[BlackElo "2341"]
[WhiteTeam "CZE"]
[BlackTeam "USA"]
[WhiteClock "0:00:34"]
[BlackClock "0:00:01"]

1. e4 {[%clk 0:03:00]}  c5 {[%clk 0:02:23]} 2. Nf3 {[%clk 0:02:58]}  d6 {[%clk 0:02:23]} 3. d4 {[%clk 0:02:58]}  cxd4 {[%clk 0:02:24]} 4. Nxd4 {[%clk 0:02:58]}  Nf6 {[%clk 0:02:25]} 5. Nc3 {[%clk 0:02:58]}  a6 {[%clk 0:02:25]} 6. f3 {[%clk 0:02:57]}  e5 {[%clk 0:02:25]} 7. Nb3 {[%clk 0:02:57]}  Be6 {[%clk 0:02:25]} 8. Be3 {[%clk 0:02:56]}  Be7 {[%clk 0:02:26]} 9. Qd2 {[%clk 0:02:56]}  O-O {[%clk 0:02:27]} 10. O-O-O {[%clk 0:02:53]}  Nbd7 {[%clk 0:02:27]} 11. g4 {[%clk 0:02:52]}  b5 {[%clk 0:02:28]} 12. h4 {[%clk 0:02:44]}  Qc7 {[%clk 0:02:16]} 13. h5 {[%clk 0:02:28]}  Rfc8 {[%clk 0:01:58]} 14. g5 {[%clk 0:02:26]}  b4 {[%clk 0:01:57]} 15. Na4 {[%clk 0:01:59]}  Qc6 {[%clk 0:01:48]} 16. gxf6 {[%clk 0:01:56]}  Qxa4 {[%clk 0:01:48]} 17. fxe7 {[%clk 0:01:38]}  Qxa2 {[%clk 0:01:23]} 18. e8=Q+ {[%clk 0:00:55]}  Nf8 {[%clk 0:01:09]} 19. Qxc8 {[%clk 0:00:50]}  Rxc8 {[%clk 0:00:51]} 20. Qxb4 {[%clk 0:00:50]}  Bxb3 {[%clk 0:00:50]} 21. Bd3 {[%clk 0:00:50]}  Bc4 {[%clk 0:00:11]} 22. Qa3 {[%clk 0:00:46]}  Bxd3 {[%clk 0:00:03]} 23. Qxa2 {[%clk 0:00:44]}  Rxc2+ {[%clk 0:00:02]} 24. Kb1 {[%clk 0:00:45]}  Rd2+ {[%clk 0:00:02]} 25. Ka1 {[%clk 0:00:45]}  Rxd1+ {[%clk 0:00:01]} 26. Rxd1 {[%clk 0:00:46]}  Be2 {[%clk 0:00:02]} 27. Rxd6 {[%clk 0:00:45]}  Bxf3 {[%clk 0:00:03]} 28. Rd8 {[%clk 0:00:43]}  Bxh5 {[%clk 0:00:04]} 29. Qa3 {[%clk 0:00:43]}  h6 {[%clk 0:00:04]} 30. Qxf8+ {[%clk 0:00:44]}  Kh7 {[%clk 0:00:05]} 31. Rd6 {[%clk 0:00:42]}  Bg6 {[%clk 0:00:05]} 32. Qe7 {[%clk 0:00:36]}  h5 {[%clk 0:00:04]} 33. Qxe5 {[%clk 0:00:35]}  h4 {[%clk 0:00:04]} 34. Qh2 {[%clk 0:00:35]}  Bh5 {[%clk 0:00:04]} 35. Qxh4 {[%clk 0:00:35]}  g6 {[%clk 0:00:05]} 36. Qf6 {[%clk 0:00:34]}  Bf3 {[%clk 0:00:05]} 37. Rd8 {[%clk 0:00:33]}  Bxe4 {[%clk 0:00:01]} 38. Rh8# {[%clk 0:00:34]} 1-0

[Event "November 21 Late 2023"]
[Site "https://www.chess.com"]
[Date "2023.11.21"]
[Round "1"]
[White "Zakaryan, David"]
[Black "Bochnicka, Vladimir"]
[Result "0-1"]
[Board "71"]
[TimeControl "180+1"]
[WhiteFideId "24101923"]
[BlackFideId "14943450"]
[WhiteElo "2323"]
[BlackElo "2170"]
[WhiteTeam "RUS"]
[BlackTeam "SVK"]
[WhiteClock "0:00:17"]
[BlackClock "0:00:07"]

1. e4 {[%clk 0:03:00]}  e5 {[%clk 0:02:58]} 2. Nf3 {[%clk 0:03:01]}  Nc6 {[%clk 0:02:58]} 3. Bc4 {[%clk 0:03:02]}  Nf6 {[%clk 0:02:57]} 4. d3 {[%clk 0:03:02]}  h6 {[%clk 0:02:57]} 5. c3 {[%clk 0:02:59]}  d6 {[%clk 0:02:56]} 6. b4 {[%clk 0:02:58]}  g5 {[%clk 0:02:55]} 7. a4 {[%clk 0:02:58]}  Bg7 {[%clk 0:02:54]} 8. a5 {[%clk 0:02:58]}  a6 {[%clk 0:02:53]} 9. Na3 {[%clk 0:02:57]}  O-O {[%clk 0:02:50]} 10. Qb3 {[%clk 0:02:55]}  Ne7 {[%clk 0:02:49]} 11. Nc2 {[%clk 0:02:54]}  b6 {[%clk 0:02:50]} 12. axb6 {[%clk 0:02:49]}  cxb6 {[%clk 0:02:50]} 13. Ne3 {[%clk 0:02:50]}  Bb7 {[%clk 0:02:34]} 14. h4 {[%clk 0:02:34]}  g4 {[%clk 0:02:32]} 15. Ng5 {[%clk 0:01:52]}  hxg5 {[%clk 0:02:14]} 16. hxg5 {[%clk 0:01:26]}  Nh7 {[%clk 0:02:08]} 17. Nf5 {[%clk 0:00:54]}  Nxf5 {[%clk 0:01:54]} 18. g6 {[%clk 0:00:49]}  d5 {[%clk 0:01:37]} 19. exf5 {[%clk 0:00:36]}  dxc4 {[%clk 0:01:33]} 20. Qxc4 {[%clk 0:00:37]}  Nf6 {[%clk 0:01:17]} 21. Bg5 {[%clk 0:00:25]}  Qd5 {[%clk 0:00:57]} 22. Qc7 {[%clk 0:00:20]}  Rac8 {[%clk 0:00:35]} 23. Qxb6 {[%clk 0:00:20]}  Qxg2 {[%clk 0:00:32]} 24. O-O-O {[%clk 0:00:19]}  Rxc3+ {[%clk 0:00:27]} 25. Kb2 {[%clk 0:00:20]}  Rc6 {[%clk 0:00:25]} 26. Qe3 {[%clk 0:00:18]}  Nd5 {[%clk 0:00:23]} 27. gxf7+ {[%clk 0:00:14]}  Rxf7 {[%clk 0:00:22]} 28. Qe4 {[%clk 0:00:14]}  Qxe4 {[%clk 0:00:17]} 29. dxe4 {[%clk 0:00:15]}  Nf6 {[%clk 0:00:09]} 30. Rd8+ {[%clk 0:00:09]}  Rf8 {[%clk 0:00:09]} 31. Rd3 {[%clk 0:00:09]}  Rc4 {[%clk 0:00:08]} 32. Ka3 {[%clk 0:00:09]}  Bxe4 {[%clk 0:00:07]} 33. Rhd1 {[%clk 0:00:07]}  Bxd3 {[%clk 0:00:08]} 34. Rxd3 {[%clk 0:00:08]}  Rd4 {[%clk 0:00:08]} 35. Rc3 {[%clk 0:00:08]}  Ne4 {[%clk 0:00:07]} 36. Rc7 {[%clk 0:00:09]}  Nxg5 {[%clk 0:00:08]} 37. Ra7 {[%clk 0:00:10]}  Rxf5 {[%clk 0:00:06]} 38. Kb3 {[%clk 0:00:10]}  Rxf2 {[%clk 0:00:07]} 39. Ka4 {[%clk 0:00:11]}  Rff4 {[%clk 0:00:07]} 40. Ka5 {[%clk 0:00:11]}  Rxb4 {[%clk 0:00:07]} 41. Ra8+ {[%clk 0:00:12]}  Kh7 {[%clk 0:00:06]} 42. Re8 {[%clk 0:00:12]}  Ra4+ {[%clk 0:00:06]} 43. Kb6 {[%clk 0:00:13]}  Rfb4+ {[%clk 0:00:06]} 44. Ka7 {[%clk 0:00:14]}  Rf4 {[%clk 0:00:05]} 45. Re7 {[%clk 0:00:14]}  Rf7 {[%clk 0:00:04]} 46. Rxf7 {[%clk 0:00:13]}  Nxf7 {[%clk 0:00:05]} 47. Kb6 {[%clk 0:00:13]}  g3 {[%clk 0:00:06]} 48. Kc5 {[%clk 0:00:14]}  g2 {[%clk 0:00:06]} 49. Kd5 {[%clk 0:00:15]}  Rd4+ {[%clk 0:00:05]} 50. Ke6 {[%clk 0:00:16]}  g1=Q {[%clk 0:00:06]} 51. Ke7 {[%clk 0:00:17]}  Qg5+ {[%clk 0:00:06]} 52. Ke8 {[%clk 0:00:17]}  Rd8+ {[%clk 0:00:06]} 53. Kxf7 {[%clk 0:00:17]}  Qf6# {[%clk 0:00:07]} 0-1

[Event "November 21 Late 2023"]
[Site "https://www.chess.com"]
[Date "2023.11.21"]
[Round "1"]
[White "Gutkin, Ilya"]
[Black "Hansen, Sune Berg"]
[Result "1/2-1/2"]
[Board "76"]
[TimeControl "180+1"]
[WhiteFideId "16203470"]
[BlackFideId "1400266"]
[WhiteElo "2248"]
[BlackElo "2718"]
[WhiteTeam "GER"]
[BlackTeam "DEN"]
[WhiteClock "0:00:11"]
[BlackClock "0:01:40"]

1. e4 {[%clk 0:03:00]}  e5 {[%clk 0:02:59]} 2. Nf3 {[%clk 0:03:01]}  Nc6 {[%clk 0:02:59]} 3. Bb5 {[%clk 0:03:01]}  a6 {[%clk 0:02:59]} 4. Ba4 {[%clk 0:03:00]}  d6 {[%clk 0:02:59]} 5. O-O {[%clk 0:02:58]}  Bd7 {[%clk 0:02:59]} 6. c3 {[%clk 0:02:58]}  g6 {[%clk 0:02:58]} 7. d4 {[%clk 0:02:56]}  Bg7 {[%clk 0:02:59]} 8. Re1 {[%clk 0:02:50]}  Nf6 {[%clk 0:02:58]} 9. dxe5 {[%clk 0:02:40]}  Nxe5 {[%clk 0:02:54]} 10. Nxe5 {[%clk 0:02:38]}  dxe5 {[%clk 0:02:54]} 11. Bg5 {[%clk 0:02:35]}  Bxa4 {[%clk 0:02:51]} 12. Qxa4+ {[%clk 0:02:35]}  Qd7 {[%clk 0:02:51]} 13. Qxd7+ {[%clk 0:02:29]}  Nxd7 {[%clk 0:02:50]} 14. Na3 {[%clk 0:02:26]}  f6 {[%clk 0:02:46]} 15. Be3 {[%clk 0:02:26]}  Bf8 {[%clk 0:02:34]} 16. Nc4 {[%clk 0:02:24]}  Bc5 {[%clk 0:02:33]} 17. Red1 {[%clk 0:02:19]}  Bxe3 {[%clk 0:02:29]} 18. Nxe3 {[%clk 0:01:46]}  O-O-O {[%clk 0:02:28]} 19. Nd5 {[%clk 0:01:21]}  Rhe8 {[%clk 0:02:24]} 20. Rd2 {[%clk 0:01:10]}  Nc5 {[%clk 0:02:20]} 21. Rad1 {[%clk 0:00:51]}  Rd6 {[%clk 0:02:16]} 22. f3 {[%clk 0:00:35]}  Kb8 {[%clk 0:02:16]} 23. Kf1 {[%clk 0:00:29]}  f5 {[%clk 0:02:10]} 24. exf5 {[%clk 0:00:16]}  gxf5 {[%clk 0:02:09]} 25. Ne3 {[%clk 0:00:15]}  Rxd2 {[%clk 0:02:05]} 26. Rxd2 {[%clk 0:00:16]}  f4 {[%clk 0:02:05]} 27. Ng4 {[%clk 0:00:14]}  c6 {[%clk 0:01:47]} 28. Re2 {[%clk 0:00:11]}  Nd3 {[%clk 0:01:42]} 29. Rd2 {[%clk 0:00:10]}  Nc5 {[%clk 0:01:40]} 30. Re2 {[%clk 0:00:11]}  Nd7 {[%clk 0:01:41]} 31. Rd2 {[%clk 0:00:11]}  Nc5 {[%clk 0:01:40]} 1/2-1/2

[Event "November 21 Late 2023"]
[Site "https://www.chess.com"]
[Date "2023.11.21"]
[Round "1"]
[White "Suspenser17"]
[Black "Schnaider, Ilan"]
[Result "0-1"]
[Board "78"]
[TimeControl "180+1"]
[BlackFideId "169013"]
[WhiteElo "2405"]
[BlackElo "2373"]
[BlackTeam "ARG"]
[WhiteClock "0:02:38"]
[BlackClock "0:02:53"]

1. e4 {[%clk 0:03:00]}  c5 {[%clk 0:02:58]} 2. c3 {[%clk 0:02:59]}  Nf6 {[%clk 0:02:57]} 3. e5 {[%clk 0:02:59]}  Nd5 {[%clk 0:02:57]} 4. d4 {[%clk 0:03:00]}  cxd4 {[%clk 0:02:56]} 5. Nf3 {[%clk 0:02:59]}  e6 {[%clk 0:02:55]} 6. cxd4 {[%clk 0:02:58]}  Nc6 {[%clk 0:02:55]} 7. Bd3 {[%clk 0:02:53]}  d6 {[%clk 0:02:54]} 8. Qe2 {[%clk 0:02:52]}  dxe5 {[%clk 0:02:53]} 9. dxe5 {[%clk 0:02:51]}  Bb4+ {[%clk 0:02:53]} 10. Nbd2 {[%clk 0:02:38]}  Nf4 {[%clk 0:02:53]} 0-1

[Event "November 21 Late 2023"]
[Site "https://www.chess.com"]
[Date "2023.11.21"]
[Round "1"]
[White "Djokic, Mihailo"]
[Black "PoXerStar"]
[Result "1-0"]
[Board "81"]
[TimeControl "180+1"]
[WhiteFideId "976440"]
[WhiteElo "2265"]
[BlackElo "2398"]
[WhiteTeam "SRB"]
[WhiteClock "0:00:18"]
[BlackClock "0:00:00"]

1. e4 {[%clk 0:03:00]}  e5 {[%clk 0:02:52]} 2. Nf3 {[%clk 0:03:00]}  Nc6 {[%clk 0:02:48]} 3. Nc3 {[%clk 0:03:01]}  Nf6 {[%clk 0:02:47]} 4. Bb5 {[%clk 0:02:59]}  Nd4 {[%clk 0:02:43]} 5. Ba4 {[%clk 0:02:59]}  c6 {[%clk 0:02:34]} 6. Nxe5 {[%clk 0:02:59]}  d5 {[%clk 0:02:29]} 7. exd5 {[%clk 0:02:52]}  Bd6 {[%clk 0:02:25]} 8. dxc6 {[%clk 0:02:52]}  O-O {[%clk 0:02:21]} 9. Nc4 {[%clk 0:02:17]}  Bg4 {[%clk 0:02:05]} 10. f3 {[%clk 0:02:14]}  Re8+ {[%clk 0:01:29]} 11. Ne3 {[%clk 0:02:13]}  Bxf3 {[%clk 0:00:44]} 12. gxf3 {[%clk 0:02:10]}  Nh5 {[%clk 0:00:44]} 13. h4 {[%clk 0:01:08]}  Qf6 {[%clk 0:00:20]} 14. cxb7 {[%clk 0:00:44]}  Nxf3+ {[%clk 0:00:17]} 15. Kf2 {[%clk 0:00:38]}  Nxh4+ {[%clk 0:00:10]} 16. Kg1 {[%clk 0:00:36]}  Rxe3 {[%clk 0:00:04]} 17. bxa8=Q+ {[%clk 0:00:35]}  Bf8 {[%clk 0:00:04]} 18. dxe3 {[%clk 0:00:31]}  Qg5+ {[%clk 0:00:04]} 19. Kf1 {[%clk 0:00:30]}  Ng3+ {[%clk 0:00:04]} 20. Ke1 {[%clk 0:00:25]}  Nxh1 {[%clk 0:00:04]} 21. Qxh1 {[%clk 0:00:24]}  Qg3+ {[%clk 0:00:00]} 22. Kf1 {[%clk 0:00:18]} 1-0